{"text_format":"1","workbook":"xlsx","n_sheets":4,"sheets":["Data","Deltagarförteckning","Intyg för närvarotid","Instruktion"],"not_rendered":{"charts":0,"images":1,"macros":1,"external_links":0,"defined_names":4,"comments":1,"pivot_tables":0},"unopened":[],"bounds":{"document_bytes":16777216,"sheet_cells":100000,"rows_first":2000,"rows_last":500,"rows_between":2000,"halvings":0,"cell_chars":16384,"cell_head_chars":4096},"cells_cut":0,"cells_raw":0,"read":"whole","date_system":"1900"}

{"sheet":"Data","index":0,"n_rows":21,"n_cols":8,"rows_kept":21,"cut":false,"hidden":true,"merged":[]}
["-",null,"Programområde",null,null,"-",null,"-"]
["Arbetsförmedlingen","Ja",1,null,null,"Januari",null,2015]
["Försäkringskassan","Nej",2,null,null,"Februari",null,2016]
["Kommun",null,null,null,null,"Mars",null,2017]
["Annan",null,null,null,null,"April",null,2018]
[null,null,null,null,null,"Maj",null,2019]
[null,null,null,null,null,"Juni",null,2020]
[null,null,null,null,null,"Juli",null,2021]
[null,null,null,null,null,"Augusti",null,2022]
[null,null,null,null,null,"September",null,2023]
[null,null,null,null,null,"Oktober"]
[null,null,null,null,null,"November"]
[null,null,null,null,null,"December"]
[]
[{"$f":"IF(SUM(#REF!)>0,\"1\",\"\")","v":{"$error":"#REF!"}}]
[]
[null,null,null,null,null,"Sista rad",40]
[]
[null,null,null,"dag",15]
[null,null,null,"månad",{"$f":"MONTH(DATEVALUE(Deltagarförteckning!Q2&\"1\"))","v":{"$error":"#VALUE!"}}]
[null,null,null,"datum",{"$f":"DATE(Deltagarförteckning!Q3,Data!E20,Data!E19)","v":{"$error":"#VALUE!"}}]

{"sheet":"Deltagarförteckning","index":1,"n_rows":42,"n_cols":33,"rows_kept":42,"cut":false,"hidden":false,"merged":[[0,0,0,21],[6,1,7,1],[6,3,7,3],[6,33,7,33],[6,26,7,26],[6,18,6,20],[6,14,6,15],[5,1,5,2],[1,10,1,15],[2,10,2,15],[6,2,7,2],[4,5,4,21],[6,0,7,0],[6,10,7,10],[1,1,1,8],[2,1,2,8],[2,16,2,17],[2,22,2,23],[5,5,5,13],[6,11,7,11],[6,12,7,12],[6,24,7,24],[6,25,7,25],[6,32,7,32],[6,31,7,31],[6,5,6,9],[6,16,6,17],[6,21,7,21],[6,4,7,4],[6,22,7,22],[1,16,1,17],[6,30,7,30],[6,23,7,23],[6,28,7,28],[6,27,7,27],[6,29,7,29],[2,28,4,28],[2,29,4,29],[5,22,5,23],[5,14,5,17],[5,18,5,20],[6,13,7,13],[5,24,5,26],[5,27,5,33]]}
["Sammanställning av närvarotimmar för deltagare i socialfondsprojekt \nInsatser inom programområde 2 (PO2) - Ökade övergångar till arbete",null,null,null,null,null,null,null,null,null,null,null,null,null,null,null,null,null,null,null,null,null,"Deltagarredovisning Indikatorer - uppgifter kopieras till SCB-mallen"]
["Diarienummer",null,null,null,null,null,null,null,null,null,"Redovisningsmånad"]
["Projektnamn",null,null,null,null,null,null,null,null,null,"År",null,null,null,null,null,null,null,null,null,null,null,"Läs instruktion för kopiering",null,null,null,null,null,"Läs instruktion avslutsorsak","Läs instruktion för kvalifikation"]
[]
[null,null,null,null,null,"Närvarotimmar per deltagare och  månad  efter medfinansiär, typ av ersättning och åldersgrupp"]
[null,"Deltagare anvisad från >  ",null,null,null,"Arbetsförmedlingen",null,null,null,null,null,null,null,null,"Försäkringskassan",null,null,null,"Kommun",null,null,"Annan","Besvaras alltid",null,"Besvaras vid första rapporteringen för delt.",null,null,"Besvaras när deltagaren slutar i projektet"]
["Namn","Personnummer  ÅÅÅÅMMDD-NNNN","Ålder","Kön","Räkna antal kön närvaro","Aktivitetsstöd och utvecklingsersättning efter ålder",null,null,null,null,"Etablerings-ersättning","Extra tjänster","Introdukti-onsjobb","Lönebidrag för utveckling","Aktivitets- och sjukersättning",null,"Sjuk- och rehab. penning",null,"Ekonomiskt bistånd",null,null,"Deltagare utan ersättning","Deltagarens personnummer","Antal timmar under månaden","Startdatum      ","Deltagaren från målgruppen","Deltagaren anvisad från","Avsluts-datum  ","Avsluts-orsak","Har deltagaren erhållit någon formell kvalifikation, certifiering eller motsvarande genom sitt projektdeltagande","Deltagarens status vid avslut","Anställnings-villkor","Anställningens omfattning"]
[null,null,null,null,null,"15-19 ","20-24","25-29","30-44","45-69",null,null,null,null,"19-29","30-64","19 år & yngre","20-64","18-24","25-29","30-64"]
[null,null,{"$f":"IFERROR(DATEDIF(CONCATENATE(MID(B9,3,2),\"-\",MID(B9,5,2),\"-\",MID(B9,7,2)),(Data!$E$21),\"Y\"),\"\")","v":""},{"$f":"IF(ISEVEN(MID(B9,12,1)),\"K\",\"M\")","v":{"$error":"#VALUE!"}},{"$f":"IF(X9>0,D9,\"\")","v":""},null,null,null,null,null,null,null,null,null,null,null,null,null,null,null,null,null,{"$f":"SUBSTITUTE(B9,\"-\",\"\")","v":""},{"$f":"SUM(F9:V9)","v":0},null,{"$f":"IF(B9>0,2,\"\")","v":""}]
[null,null,{"$f":"IFERROR(DATEDIF(CONCATENATE(MID(B10,3,2),\"-\",MID(B10,5,2),\"-\",MID(B10,7,2)),(Data!$E$21),\"Y\"),\"\")","v":""},{"$f":"IF(ISEVEN(MID(B10,12,1)),\"K\",\"M\")","v":{"$error":"#VALUE!"}},{"$f":"IF(X10>0,D10,\"\")","v":""},null,null,null,null,null,null,null,null,null,null,null,null,null,null,null,null,null,{"$f":"SUBSTITUTE(B10,\"-\",\"\")","v":""},{"$f":"SUM(F10:V10)","v":0},null,""]
[null,null,{"$f":"IFERROR(DATEDIF(CONCATENATE(MID(B11,3,2),\"-\",MID(B11,5,2),\"-\",MID(B11,7,2)),(Data!$E$21),\"Y\"),\"\")","v":""},{"$error":"#VALUE!"},"",null,null,null,null,null,null,null,null,null,null,null,null,null,null,null,null,null,"",0,null,""]
[null,null,{"$f":"IFERROR(DATEDIF(CONCATENATE(MID(B12,3,2),\"-\",MID(B12,5,2),\"-\",MID(B12,7,2)),(Data!$E$21),\"Y\"),\"\")","v":""},{"$error":"#VALUE!"},"",null,null,null,null,null,null,null,null,null,null,null,null,null,null,null,null,null,"",0,null,""]
[null,null,{"$f":"IFERROR(DATEDIF(CONCATENATE(MID(B13,3,2),\"-\",MID(B13,5,2),\"-\",MID(B13,7,2)),(Data!$E$21),\"Y\"),\"\")","v":""},{"$error":"#VALUE!"},"",null,null,null,null,null,null,null,null,null,null,null,null,null,null,null,null,null,"",0,null,""]
[null,null,{"$f":"IFERROR(DATEDIF(CONCATENATE(MID(B14,3,2),\"-\",MID(B14,5,2),\"-\",MID(B14,7,2)),(Data!$E$21),\"Y\"),\"\")","v":""},{"$error":"#VALUE!"},"",null,null,null,null,null,null,null,null,null,null,null,null,null,null,null,null,null,"",0,null,""]
[null,null,{"$f":"IFERROR(DATEDIF(CONCATENATE(MID(B15,3,2),\"-\",MID(B15,5,2),\"-\",MID(B15,7,2)),(Data!$E$21),\"Y\"),\"\")","v":""},{"$error":"#VALUE!"},"",null,null,null,null,null,null,null,null,null,null,null,null,null,null,null,null,null,"",0,null,""]
[null,null,{"$f":"IFERROR(DATEDIF(CONCATENATE(MID(B16,3,2),\"-\",MID(B16,5,2),\"-\",MID(B16,7,2)),(Data!$E$21),\"Y\"),\"\")","v":""},{"$error":"#VALUE!"},"",null,null,null,null,null,null,null,null,null,null,null,null,null,null,null,null,null,"",0,null,""]
[null,null,{"$f":"IFERROR(DATEDIF(CONCATENATE(MID(B17,3,2),\"-\",MID(B17,5,2),\"-\",MID(B17,7,2)),(Data!$E$21),\"Y\"),\"\")","v":""},{"$error":"#VALUE!"},"",null,null,null,null,null,null,null,null,null,null,null,null,null,null,null,null,null,"",0,null,{"$f":"IF(B17>0,2,\"\")","v":""}]
[null,null,{"$f":"IFERROR(DATEDIF(CONCATENATE(MID(B18,3,2),\"-\",MID(B18,5,2),\"-\",MID(B18,7,2)),(Data!$E$21),\"Y\"),\"\")","v":""},{"$error":"#VALUE!"},"",null,null,null,null,null,null,null,null,null,null,null,null,null,null,null,null,null,"",0,null,{"$f":"IF(B18>0,2,\"\")","v":""}]
[null,null,{"$f":"IFERROR(DATEDIF(CONCATENATE(MID(B19,3,2),\"-\",MID(B19,5,2),\"-\",MID(B19,7,2)),(Data!$E$21),\"Y\"),\"\")","v":""},{"$error":"#VALUE!"},"",null,null,null,null,null,null,null,null,null,null,null,null,null,null,null,null,null,"",0,null,""]
[null,null,{"$f":"IFERROR(DATEDIF(CONCATENATE(MID(B20,3,2),\"-\",MID(B20,5,2),\"-\",MID(B20,7,2)),(Data!$E$21),\"Y\"),\"\")","v":""},{"$error":"#VALUE!"},"",null,null,null,null,null,null,null,null,null,null,null,null,null,null,null,null,null,"",0,null,""]
[null,null,{"$f":"IFERROR(DATEDIF(CONCATENATE(MID(B21,3,2),\"-\",MID(B21,5,2),\"-\",MID(B21,7,2)),(Data!$E$21),\"Y\"),\"\")","v":""},{"$error":"#VALUE!"},"",null,null,null,null,null,null,null,null,null,null,null,null,null,null,null,null,null,"",0,null,""]
[null,null,{"$f":"IFERROR(DATEDIF(CONCATENATE(MID(B22,3,2),\"-\",MID(B22,5,2),\"-\",MID(B22,7,2)),(Data!$E$21),\"Y\"),\"\")","v":""},{"$error":"#VALUE!"},"",null,null,null,null,null,null,null,null,null,null,null,null,null,null,null,null,null,"",0,null,""]
[null,null,{"$f":"IFERROR(DATEDIF(CONCATENATE(MID(B23,3,2),\"-\",MID(B23,5,2),\"-\",MID(B23,7,2)),(Data!$E$21),\"Y\"),\"\")","v":""},{"$error":"#VALUE!"},"",null,null,null,null,null,null,null,null,null,null,null,null,null,null,null,null,null,"",0,null,""]
[null,null,{"$f":"IFERROR(DATEDIF(CONCATENATE(MID(B24,3,2),\"-\",MID(B24,5,2),\"-\",MID(B24,7,2)),(Data!$E$21),\"Y\"),\"\")","v":""},{"$error":"#VALUE!"},"",null,null,null,null,null,null,null,null,null,null,null,null,null,null,null,null,null,"",0,null,""]
[null,null,{"$f":"IFERROR(DATEDIF(CONCATENATE(MID(B25,3,2),\"-\",MID(B25,5,2),\"-\",MID(B25,7,2)),(Data!$E$21),\"Y\"),\"\")","v":""},{"$error":"#VALUE!"},"",null,null,null,null,null,null,null,null,null,null,null,null,null,null,null,null,null,"",0,null,""]
[null,null,{"$f":"IFERROR(DATEDIF(CONCATENATE(MID(B26,3,2),\"-\",MID(B26,5,2),\"-\",MID(B26,7,2)),(Data!$E$21),\"Y\"),\"\")","v":""},{"$error":"#VALUE!"},"",null,null,null,null,null,null,null,null,null,null,null,null,null,null,null,null,null,"",0,null,""]
[null,null,{"$f":"IFERROR(DATEDIF(CONCATENATE(MID(B27,3,2),\"-\",MID(B27,5,2),\"-\",MID(B27,7,2)),(Data!$E$21),\"Y\"),\"\")","v":""},{"$error":"#VALUE!"},"",null,null,null,null,null,null,null,null,null,null,null,null,null,null,null,null,null,"",0,null,""]
[null,null,{"$f":"IFERROR(DATEDIF(CONCATENATE(MID(B28,3,2),\"-\",MID(B28,5,2),\"-\",MID(B28,7,2)),(Data!$E$21),\"Y\"),\"\")","v":""},{"$error":"#VALUE!"},"",null,null,null,null,null,null,null,null,null,null,null,null,null,null,null,null,null,"",0,null,""]
[null,null,{"$f":"IFERROR(DATEDIF(CONCATENATE(MID(B29,3,2),\"-\",MID(B29,5,2),\"-\",MID(B29,7,2)),(Data!$E$21),\"Y\"),\"\")","v":""},{"$error":"#VALUE!"},"",null,null,null,null,null,null,null,null,null,null,null,null,null,null,null,null,null,"",0,null,""]
[null,null,{"$f":"IFERROR(DATEDIF(CONCATENATE(MID(B30,3,2),\"-\",MID(B30,5,2),\"-\",MID(B30,7,2)),(Data!$E$21),\"Y\"),\"\")","v":""},{"$error":"#VALUE!"},"",null,null,null,null,null,null,null,null,null,null,null,null,null,null,null,null,null,"",0,null,""]
[null,null,{"$f":"IFERROR(DATEDIF(CONCATENATE(MID(B31,3,2),\"-\",MID(B31,5,2),\"-\",MID(B31,7,2)),(Data!$E$21),\"Y\"),\"\")","v":""},{"$error":"#VALUE!"},"",null,null,null,null,null,null,null,null,null,null,null,null,null,null,null,null,null,"",0,null,""]
[null,null,{"$f":"IFERROR(DATEDIF(CONCATENATE(MID(B32,3,2),\"-\",MID(B32,5,2),\"-\",MID(B32,7,2)),(Data!$E$21),\"Y\"),\"\")","v":""},{"$error":"#VALUE!"},"",null,null,null,null,null,null,null,null,null,null,null,null,null,null,null,null,null,"",0,null,""]
[null,null,{"$f":"IFERROR(DATEDIF(CONCATENATE(MID(B33,3,2),\"-\",MID(B33,5,2),\"-\",MID(B33,7,2)),(Data!$E$21),\"Y\"),\"\")","v":""},{"$error":"#VALUE!"},"",null,null,null,null,null,null,null,null,null,null,null,null,null,null,null,null,null,"",0,null,""]
[null,null,{"$f":"IFERROR(DATEDIF(CONCATENATE(MID(B34,3,2),\"-\",MID(B34,5,2),\"-\",MID(B34,7,2)),(Data!$E$21),\"Y\"),\"\")","v":""},{"$error":"#VALUE!"},"",null,null,null,null,null,null,null,null,null,null,null,null,null,null,null,null,null,"",0,null,""]
[null,null,{"$f":"IFERROR(DATEDIF(CONCATENATE(MID(B35,3,2),\"-\",MID(B35,5,2),\"-\",MID(B35,7,2)),(Data!$E$21),\"Y\"),\"\")","v":""},{"$error":"#VALUE!"},"",null,null,null,null,null,null,null,null,null,null,null,null,null,null,null,null,null,"",0,null,""]
[null,null,{"$f":"IFERROR(DATEDIF(CONCATENATE(MID(B36,3,2),\"-\",MID(B36,5,2),\"-\",MID(B36,7,2)),(Data!$E$21),\"Y\"),\"\")","v":""},{"$error":"#VALUE!"},"",null,null,null,null,null,null,null,null,null,null,null,null,null,null,null,null,null,"",0,null,""]
[null,null,{"$f":"IFERROR(DATEDIF(CONCATENATE(MID(B37,3,2),\"-\",MID(B37,5,2),\"-\",MID(B37,7,2)),(Data!$E$21),\"Y\"),\"\")","v":""},{"$error":"#VALUE!"},"",null,null,null,null,null,null,null,null,null,null,null,null,null,null,null,null,null,"",0,null,""]
[null,null,{"$f":"IFERROR(DATEDIF(CONCATENATE(MID(B38,3,2),\"-\",MID(B38,5,2),\"-\",MID(B38,7,2)),(Data!$E$21),\"Y\"),\"\")","v":""},{"$error":"#VALUE!"},"",null,null,null,null,null,null,null,null,null,null,null,null,null,null,null,null,null,"",0,null,""]
[null,null,{"$f":"IFERROR(DATEDIF(CONCATENATE(MID(B39,3,2),\"-\",MID(B39,5,2),\"-\",MID(B39,7,2)),(Data!$E$21),\"Y\"),\"\")","v":""},{"$error":"#VALUE!"},"",null,null,null,null,null,null,null,null,null,null,null,null,null,null,null,null,null,"",0,null,""]
[null,null,{"$f":"IFERROR(DATEDIF(CONCATENATE(MID(B40,3,2),\"-\",MID(B40,5,2),\"-\",MID(B40,7,2)),(Data!$E$21),\"Y\"),\"\")","v":""},{"$error":"#VALUE!"},"",null,null,null,null,null,null,null,null,null,null,null,null,null,null,null,null,null,"",0,null,""]
["sista",null,null,null,null,{"$f":"SUM(F9:F40)","v":0},{"$f":"SUM(G9:G40)","v":0},0,0,0,0,0,0,0,0,0,0,0,0,0,0,0]
[null,null,null,null,null,{"$f":"COUNT(F9:F40)","v":0},{"$f":"COUNT(G9:G40)","v":0},0,0,0,0,0,0,0,0,0,0,0,0,0,0,0]

{"sheet":"Intyg för närvarotid","index":2,"n_rows":48,"n_cols":5,"rows_kept":48,"cut":false,"hidden":false,"merged":[[36,0,36,1],[47,0,48,5],[44,0,44,1],[45,0,45,1],[37,0,37,1],[38,0,38,1],[43,2,43,3],[44,2,44,3],[40,0,41,5],[36,4,36,5],[37,4,37,5],[19,0,19,1],[20,0,20,1],[21,0,21,1],[22,0,22,1],[23,0,23,1],[19,4,19,5],[0,0,0,5],[1,0,1,5],[7,0,7,1],[8,0,8,1],[9,0,9,1],[3,1,3,2],[4,1,4,2],[3,4,3,5],[4,4,4,5],[7,4,7,5],[8,4,8,5],[6,0,6,5],[9,4,9,5],[10,0,10,1],[11,0,11,1],[18,0,18,5],[10,4,10,5],[11,4,11,5],[12,4,12,5],[13,4,13,5],[12,0,12,1],[13,0,13,1],[14,0,14,1],[14,4,14,5],[15,0,15,1],[15,4,15,5],[16,0,16,1],[16,4,16,5],[25,0,25,5],[26,4,26,5],[20,4,20,5],[21,4,21,5],[22,4,22,5],[23,4,23,5],[26,0,26,1],[34,4,34,5],[33,4,33,5],[32,0,32,5],[31,0,31,5],[27,4,27,5],[28,4,28,5],[29,4,29,5],[27,0,27,1],[28,0,28,1],[29,0,29,1],[33,0,33,1],[34,0,34,1]]}
["Intyg för närvarotid för deltagare i socialfondsprojekt  "]
["Insatser inom programområde 2 (PO2) - Ökade övergångar till arbete"]
[]
["Diarienummer",{"$f":"Deltagarförteckning!B2:I2","v":0},null,"Redovisningsmånad",{"$f":"Deltagarförteckning!Q2","v":0}]
["Projektnamn",{"$f":"Deltagarförteckning!B3:I3","v":0},null,"År",{"$f":"Deltagarförteckning!Q3","v":0}]
[]
["Deltagare anvisade från:                                  Arbetsförmedlingen"]
["Typ av ersättning",null,"Ålder (år)","Antal deltagare","Närvarotimmar "]
["Aktivitetsstöd och utvecklingsersättning ",null,"15-19 ",{"$f":"Deltagarförteckning!F42","v":0},{"$f":"Deltagarförteckning!F41","v":0}]
["Aktivitetsstöd och utvecklingsersättning ",null,"20-24 ",{"$f":"Deltagarförteckning!G42","v":0},{"$f":"Deltagarförteckning!G41","v":0}]
["Aktivitetsstöd och utvecklingsersättning ",null,"25-29",{"$f":"Deltagarförteckning!H42","v":0},{"$f":"Deltagarförteckning!H41","v":0}]
["Aktivitetsstöd och utvecklingsersättning ",null,"30-44",{"$f":"Deltagarförteckning!I42","v":0},{"$f":"Deltagarförteckning!I41","v":0}]
["Aktivitetsstöd och utvecklingsersättning ",null,"45-69",{"$f":"Deltagarförteckning!J42","v":0},{"$f":"Deltagarförteckning!J41","v":0}]
["Etableringsersättning",null,"alla",{"$f":"Deltagarförteckning!K42","v":0},{"$f":"Deltagarförteckning!K41","v":0}]
["Extra tjänster",null,"alla",{"$f":"Deltagarförteckning!L42","v":0},{"$f":"Deltagarförteckning!L41","v":0}]
["Introduktionsjobb",null,"alla",{"$f":"Deltagarförteckning!M42","v":0},{"$f":"Deltagarförteckning!M41","v":0}]
["Lönebidrag för utveckling",null,"alla",{"$f":"Deltagarförteckning!N42","v":0},{"$f":"Deltagarförteckning!N41","v":0}]
[]
["Deltagare anvisade från:                                  Försäkringskassan"]
["Typ av ersättning",null,"Ålder (år)","Antal deltagare","Närvarotimmar "]
["Aktivitets- och sjukersättning ",null,"19-29",{"$f":"Deltagarförteckning!O42","v":0},{"$f":"Deltagarförteckning!O41","v":0}]
["Aktivitets- och sjukersättning ",null,"30-64",{"$f":"Deltagarförteckning!P42","v":0},{"$f":"Deltagarförteckning!P41","v":0}]
["Sjuk- och rehab. penning ",null,"19 år eller yngre",{"$f":"Deltagarförteckning!Q42","v":0},{"$f":"Deltagarförteckning!Q41","v":0}]
["Sjuk- och rehab. penning ",null,"20-64",{"$f":"Deltagarförteckning!R42","v":0},{"$f":"Deltagarförteckning!R41","v":0}]
[]
["Deltagare anvisade från:                                  Kommun"]
["Typ av ersättning",null,"Ålder (år)","Antal deltagare","Närvarotimmar "]
["Ekonomiskt bistånd ",null,"18-24",{"$f":"Deltagarförteckning!S42","v":0},{"$f":"Deltagarförteckning!S41","v":0}]
["Ekonomiskt bistånd ",null,"25-29",{"$f":"Deltagarförteckning!T42","v":0},{"$f":"Deltagarförteckning!T41","v":0}]
["Ekonomiskt bistånd ",null,"30-64",{"$f":"Deltagarförteckning!U42","v":0},{"$f":"Deltagarförteckning!U41","v":0}]
[]
["OBS! Dessa timmar registreras inte i ansökan om utbetalning"]
["Deltagare anvisade från:                                  Annan aktör"]
["Typ av ersättning",null,"Ålder (år)","Antal deltagare","Närvarotimmar "]
["Ingen ersättning",null,"alla",{"$f":"Deltagarförteckning!V42","v":0},{"$f":"Deltagarförteckning!V41","v":0}]
[]
["Totalt antal deltagare under månaden",null,{"$f":"COUNTIF(Deltagarförteckning!X9:X400,\">0\")","v":0},"Antal kvinnor",{"$f":"COUNTIF(Deltagarförteckning!E9:E500,\"=K\")","v":0}]
["Totalt deltagartimmar under månaden",null,{"$f":"SUM(Deltagarförteckning!F41:V41)","v":0},"Antal män",{"$f":"COUNTIF(Deltagarförteckning!E9:E500,\"=M\")","v":0}]
["Antal timmar i snitt per deltagare ",null,{"$f":"IFERROR(C38/C37,\"\")","v":""}]
[]
["Härmed intygas att redovisade timmar motsvarar den faktiska närvarotiden för deltagare i projektet under månaden fördelat efter medfinansiär, typ av ersättning och åldersgrupp. "]
[]
[]
["__________________________________"]
["Underskrift ",null,"Namnförtydligande"]
[" Behörig företrädare för projektet"]
[]
["Information till projektägaren: Blanketten skickas till Svenska ESF-rådet i samband med ansökan om utbetalning av stöd för ovanstående redovisningsperiod. Övrig dokumentation (närvarorapport för deltagare, deltagarförteckning etc.) sparas hos projektägaren."]

{"sheet":"Instruktion","index":3,"n_rows":17,"n_cols":1,"rows_kept":17,"cut":false,"hidden":false,"merged":[[13,0,13,9],[14,0,14,9],[15,0,15,9],[16,0,16,9],[4,0,4,9],[7,0,7,9],[8,0,8,9],[9,0,9,9],[10,0,10,9],[11,0,11,9],[12,0,12,9],[6,0,6,9],[0,0,0,9],[1,0,1,9],[2,0,2,9],[3,0,3,9],[5,0,5,9]]}
["Instruktion"]
["för sammanställning av närvarotimmar  för deltagare i socialfondsprojekt \nInsatser inom programområde 2 (PO2) - Ökade övergångar till arbete  "]
["Varje enskild person som deltar i ett socialfondsprojekt ska redovisa sin närvarotid i projektet. Genom blanketten Närvarorapport för deltagare inom PO2 skapas underlag för att sammanställa uppgifter som Svenska ESF-rådet ska ha in som underlag vid ansökan om utbetalning.\nDessa uppgifter fungerar även som underlag för rapportering till Statistiska centralbyrån (SCB). SCB samlar in och sammanställer information om deltagare i socialfondsprojekt för rapportering till EU-kommissionen. För att underlätta rapporteringen fungerar den här blanketten både för rapporteringen till Svenska ESF-rådet och till SCB. Dokumentet bygger på Excel och består av tre flikar: Deltagarförteckning, Intyg för närvarotid och Instruktion"]
["Så här fyller ni i blanketten:"]
["Fyll i projektets diarienummer och namn. Uppge aktuell redovisningsmånad genom att välja månad i rullisten. Välj aktuellt år i rullisten."]
["Flik Deltagarförteckning"]
["Sammanställningen av närvarotimmar för deltagare i socialfondsprojekt "]
["Fyll i deltagarnas namn och personnummer. Ålder räknas ut automatiskt och fungerar som informationsfält.\nUppge varje deltagares totala antal närvarotimmar i projektet för den aktuella månaden enligt närvarorapporten för deltagare i den ruta som överensstämmer med medfinansiär, deltagarens ersättning och åldersgrupp. \nHar ni deltagare med i projektet som saknar ersättning uppger ni antal närvarotimmar i kolumnen Annan. Detta för att det ska synas att det finns en deltagare men att den inte är kopplad till någon medfinansiering. "]
["Deltagarredovisning Indikatorer - uppgifter kopieras till SCB-mallen "]
["Uppgifter som redan är ifyllda i sammanställningen gällande deltagarens personnummer och antal närvarotimmar under månaden samt inom vilket programområde deltagaren är rapporterad förs automatiskt över till underlaget för SCB-rapporteringen. Uppgifter gällande start och avslut fyller ni i vid aktuell tidpunkt. \nUppgifterna speglar de uppgifter som ni måste rapportera till SCB. Följ instruktionen för kopiering som ni finner i överkant i dokumentet och kopiera till SCB-rapporteringen som ni har fått inloggningsuppgifter till. Kontrollera att rätta rader är markerade vid kopiering, börja alltid i cell T9. "]
["Vid första rapporteringen"]
["Uppge datum då deltagaren skrivs in i projektet.  \nStäll er i rutan för Deltagare anvisad från och ni får fyra alternativ. Skriv i den siffra som representerar varifrån deltagaren är anvisad"]
["När deltagaren slutar i projektet"]
["Ställ er i respektive ruta i dokumentet så kommer en hjälpruta fram som stöd för vad som ska fyllas i. Uppge deltagarens e-postadress och telefonnummer. \nDet finns en kort instruktion i ovankant vad som avses med en formell kvalifikation och avslutsorsak, klicka på rutan Instruktion för kvalifikation eller instruktion för avslutsorsak för mer information. \n"]
["Flik Intyg för närvarotid "]
["En sammanställning över de uppgifter ni anger i deltagarförteckningen förs automatiskt över till intyget för närvarotid. Intyget skrivs ut, undertecknas och skickas in till Svenska ESF-rådet i samband med ansökan om utbetalning. Observera att deltagarförteckningen och deltagarnas närvarorapporter ska sparas hos er i det fall Svenska ESF-rådet eller ett revisionsorgan behöver kontrollera inlämnade uppgifter. "]
["Uppgifterna från fliken Intyg för närvarotid är de som ni sedan överför till ansökan om utbetalning när ni redovisar i Projektrummet. Medfinansiär, typ av ersättning kopplat till ålder, antal deltagare och antal timmar ska stämma överens mellan intyget och redovisningen i ansökan om utbetalning. "]